bitfinex/quotes_BTCUSD_20260127
["timestamp","ask_amount","ask_price","bid_price","bid_amount"]
[1769528838275,0.000283,87868.0,87810.0,0.0234444]
[1769528838276,0.01,87829.0,87810.0,0.0234444]
[1769528838446,0.0149515,87843.0,87812.0,0.0234444]
[1769528838653,0.0149515,87843.0,87816.0,0.0234444]
[1769528838654,0.099,87842.0,87816.0,0.0234444]
[1769528838951,0.099,87842.0,87808.0,0.000283]
[1769528838952,0.0149515,87843.0,87821.0,0.6354533]
[1769528839162,0.05692241,87839.0,87824.0,0.0234444]
[1769528839305,0.34163094,87843.0,87824.0,0.0234444]
[1769528839516,0.023514,87840.0,87824.0,0.0234444]
[1769528839716,0.05692431,87836.0,87817.0,0.6354533]
[1769528840009,0.099,87839.0,87821.0,0.6354533]
[1769528840010,0.05692252,87839.0,87821.0,0.6354533]
[1769528840327,0.023514,87846.0,87826.0,0.0234444]
[1769528840676,0.05692011,87843.0,87827.0,0.6588977]
[1769528841295,0.05692011,87843.0,87811.0,0.6354533]
[1769528841296,0.099,87843.0,87811.0,0.6354533]
[1769528841506,0.023514,87840.0,87814.0,0.0234444]
[1769528841729,0.099,87839.0,87817.0,0.6354533]
[1769528841883,0.05692355,87838.0,87820.0,0.0234444]
[1769528842093,0.05692355,87838.0,87810.0,0.0002764]
[1769528842094,0.05692355,87838.0,87821.0,0.6588977]
[1769528842292,0.05692317,87838.0,87821.0,0.6588977]
[1769528842891,0.099,87839.0,87821.0,0.6588977]
[1769528843561,0.099,87846.0,87825.0,0.67512271]
[1769528843698,0.12179852,87846.0,87826.0,0.02264983]
[1769528843885,0.09116538,87866.0,87838.0,0.67512271]
[1769528844080,0.0002,87874.0,87852.0,0.02264983]
[1769528844339,0.0002,87874.0,87856.0,0.02463795]
[1769528844521,0.05690416,87868.0,87856.0,0.02463795]
[1769528844695,0.10390404,87873.0,87856.0,0.02186613]
[1769528844903,0.01,87856.0,87840.0,0.67764625]
[1769528845107,0.01,87856.0,87844.0,0.02463795]
[1769528845325,0.01,87856.0,87844.0,0.67764625]
[1769528845527,0.05690485,87866.0,87847.0,0.02463795]
[1769528845704,0.02320752,87867.0,87849.0,0.02463795]
[1769528845705,0.08011226,87867.0,87849.0,0.02463795]
[1769528845930,0.08428085,87865.0,87849.0,0.02463795]
[1769528846296,0.0801123,87867.0,87850.0,0.67764625]
[1769528846297,0.02320752,87867.0,87850.0,0.67764625]
[1769528846471,0.02320752,87867.0,87849.0,0.02463795]
[1769528846642,0.02737523,87865.0,87849.0,0.02463795]
[1769528846962,0.12220752,87862.0,87844.0,0.02463795]
[1769528847322,0.22763365,87861.0,87844.0,0.02463795]
[1769528847548,0.05691168,87856.0,87844.0,0.02463795]
[1769528847747,0.05691136,87856.0,87844.0,0.02463795]
[1769528847948,0.22763631,87860.0,87840.0,0.67764625]
[1769528847949,0.05691369,87853.0,87840.0,0.67764625]
[1769528848390,0.02737523,87865.0,87838.0,0.02463795]
[1769528848391,0.02737523,87851.0,87838.0,0.02463795]
[1769528848589,0.02737523,87851.0,87835.0,0.67764625]
[1769528848590,0.12637523,87851.0,87835.0,0.67764625]
[1769528848767,0.05691584,87850.0,87835.0,0.67764625]
[1769528848969,0.099,87851.0,87835.0,0.67764625]
[1769528849368,0.099,87851.0,87835.0,0.7022842]
[1769528849922,0.099,87851.0,87836.0,0.02463795]
[1769528850628,0.1559149,87851.0,87836.0,0.02463795]
[1769528850851,0.05691527,87850.0,87836.0,0.02463795]
[1769528851041,0.02737523,87850.0,87821.0,0.11696]
[1769528851248,0.099,87843.0,87821.0,0.67764625]
[1769528851448,0.15591987,87843.0,87823.0,0.67764625]
[1769528851651,0.15591987,87843.0,87825.0,0.7022842]
[1769528851804,0.099,87843.0,87826.0,0.7022842]
[1769528851996,0.15591978,87843.0,87826.0,0.7022842]
[1769528852195,0.02320752,87841.0,87810.0,0.0002764]
[1769528852449,0.02737523,87850.0,87813.0,0.67764625]
[1769528852450,0.67040263,87834.0,87813.0,0.67764625]
[1769528852650,0.02320752,87832.0,87813.0,0.67764625]
[1769528853750,0.66765357,87831.0,87813.0,0.7022842]
[1769528853966,0.66765357,87831.0,87813.0,0.67764625]
[1769528854100,0.02320752,87832.0,87815.0,0.7022842]
[1769528854300,0.02320752,87841.0,87817.0,0.67764625]
[1769528854682,0.02737523,87850.0,87810.0,0.34127488]
[1769528854683,0.02320752,87839.0,87819.0,0.67764625]
[1769528854890,0.05692607,87834.0,87820.0,0.7022842]
[1769528855015,0.66765357,87840.0,87820.0,0.7022842]
[1769528855016,0.66765357,87838.0,87820.0,0.02463795]
[1769528855215,0.66765357,87833.0,87813.0,0.02463795]
[1769528855427,0.05692781,87831.0,87814.0,0.67764625]
[1769528856056,0.69086109,87833.0,87814.0,0.67764625]
[1769528856372,0.02320752,87833.0,87817.0,0.02463795]
[1769528856535,0.02320752,87833.0,87810.0,0.0002764]
[1769528856536,0.02320752,87833.0,87818.0,0.7022842]
[1769528856937,0.66765357,87838.0,87819.0,0.02463795]
[1769528857146,0.66765357,87838.0,87820.0,0.67764625]
[1769528857969,0.91855556,87838.0,87820.0,0.67764625]
[1769528858168,0.05692594,87834.0,87820.0,0.67764625]
[1769528858549,0.05692483,87836.0,87820.0,0.67764625]
[1769528858755,0.74778454,87838.0,87820.0,0.7022842]
[1769528858952,0.69086109,87838.0,87820.0,0.7022842]
[1769528860273,0.0569258,87834.0,87820.0,0.7022842]
[1769528860515,0.05692625,87833.0,87820.0,0.7022842]
[1769528860898,0.69086109,87838.0,87820.0,0.7022842]
[1769528861060,0.0569265,87833.0,87820.0,0.7022842]
[1769528861385,0.69086109,87838.0,87820.0,0.7022842]
[1769528861595,0.02320752,87837.0,87820.0,0.02463795]
[1769528861765,0.69086109,87836.0,87820.0,0.02463795]
[1769528861962,0.45875621,87869.0,87814.0,0.7022842]
[1769528861963,0.66765357,87834.0,87814.0,0.7022842]
[1769528862201,0.02737523,87835.0,87814.0,0.7022842]
[1769528862202,0.05692871,87830.0,87814.0,0.7022842]
[1769528862402,0.70986518,87850.0,87815.0,0.02463795]
[1769528862403,0.66765357,87845.0,87815.0,0.02463795]
[1769528862580,0.11345377,87844.0,87822.0,0.02463795]
[1769528862777,0.66765357,87853.0,87833.0,0.67764625]
[1769528862954,0.66765357,87853.0,87836.0,0.02463795]
[1769528863161,0.66765357,87853.0,87838.0,0.02463795]
[1769528863355,0.75052504,87851.0,87822.0,0.02463795]
[1769528863609,0.02320752,87847.0,87825.0,0.67764625]
[1769528863810,0.69361015,87847.0,87827.0,0.7022842]
[1769528863987,0.67040263,87845.0,87828.0,0.02463795]
[1769528864158,0.67040263,87845.0,87828.0,0.7022842]
[1769528864364,0.02320752,87847.0,87829.0,0.7022842]
[1769528864581,0.02320752,87847.0,87830.0,0.67764625]
[1769528864809,0.08012473,87847.0,87831.0,0.02463795]
[1769528865115,0.72732011,87847.0,87820.0,0.117]
[1769528865316,0.02320752,87844.0,87824.0,0.02463795]
[1769528865515,0.02320752,87838.0,87820.0,0.117]
[1769528865717,0.02320752,87836.0,87820.0,0.117]
[1769528865948,0.02320752,87836.0,87820.0,0.79464625]
[1769528866704,0.02737523,87849.0,87820.0,0.79464625]
[1769528866938,0.117,87849.0,87824.0,0.67764625]
[1769528867231,0.02320752,87848.0,87828.0,0.67764625]
[1769528867391,0.67040263,87848.0,87828.0,0.7022842]
[1769528867598,0.02320752,87847.0,87828.0,0.7022842]
[1769528868156,0.05691325,87853.0,87820.0,0.45799848]
[1769528868157,0.05691341,87853.0,87831.0,0.02463795]
[1769528868436,0.05691393,87852.0,87836.0,0.67764625]
[1769528869068,0.02320752,87854.0,87836.0,0.67764625]
[1769528870089,0.02320752,87852.0,87836.0,0.67764625]
[1769528871810,0.05691204,87855.0,87837.0,0.02295838]
[1769528871811,0.02737523,87850.0,87837.0,0.02295838]
[1769528872107,0.02320752,87849.0,87823.0,0.67764625]
[1769528872312,0.02320752,87849.0,87822.0,0.02295838]
[1769528872449,0.02320752,87849.0,87825.0,0.67764625]
[1769528872651,0.02320752,87849.0,87820.0,0.117]
[1769528872652,0.02320752,87849.0,87827.0,0.70060463]
[1769528872851,0.02320752,87849.0,87828.0,0.02295838]
[1769528873051,0.05691737,87847.0,87829.0,0.67764625]
[1769528873252,0.02320752,87847.0,87829.0,0.67764625]
[1769528875173,0.02320752,87847.0,87829.0,0.68550841]
[1769528875361,0.02320752,87847.0,87829.0,0.67764625]
[1769528875759,0.02737523,87864.0,87829.0,0.67764625]
[1769528875982,0.08607442,87869.0,87820.0,0.45799848]
[1769528875983,0.02337711,87858.0,87833.0,0.67923211]
[1769528876190,0.02337711,87858.0,87836.0,0.02303132]
[1769528876389,0.02337711,87858.0,87830.0,0.34099848]
[1769528876390,0.02337711,87858.0,87839.0,0.67923211]
[1769528876599,0.02337711,87858.0,87840.0,0.70226343]
[1769528877179,0.02337711,87858.0,87842.0,0.67923211]
[1769528877373,0.67877905,87860.0,87843.0,0.70226343]
[1769528877574,0.67877905,87860.0,87833.0,0.67923211]
[1769528877776,0.02337711,87857.0,87825.0,0.67923211]
[1769528878003,0.02337711,87857.0,87827.0,0.67923211]
[1769528878203,0.02337711,87857.0,87830.0,0.02303132]
[1769528878519,0.02337711,87857.0,87834.0,0.02303132]
[1769528878818,0.62077624,87863.0,87838.0,0.02303132]
[1769528878964,0.17038789,87862.0,87842.0,0.02303132]
[1769528879168,0.62077624,87863.0,87844.0,0.02303132]
[1769528879387,0.05690837,87861.0,87844.0,0.02303132]
[1769528879584,0.0002,87874.0,87845.0,0.67923211]
[1769528879585,0.63793987,87874.0,87845.0,0.67923211]
[1769528879827,0.05690145,87872.0,87843.0,0.67923211]
[1769528880025,0.81179994,87874.0,87846.0,0.02303132]
[1769528880180,0.81179994,87874.0,87850.0,0.02303132]
[1769528880181,0.05690059,87873.0,87850.0,0.02303132]
[1769528880386,0.05690142,87872.0,87853.0,0.67923211]
[1769528880586,0.05690057,87873.0,87842.0,0.02303132]
[1769528880788,0.05690134,87872.0,87845.0,0.67923211]
[1769528881039,0.05690134,87872.0,87846.0,0.02303132]
[1769528881202,0.11716,87874.0,87850.0,0.02303132]
[1769528881397,0.11716,87874.0,87852.0,0.02303132]
[1769528881704,0.0002,87877.0,87836.0,0.11696]
[1769528881705,0.0002,87877.0,87861.0,0.67923211]
[1769528881888,0.0002,87877.0,87863.0,0.67923211]
[1769528882091,0.0002,87877.0,87864.0,0.02303132]
[1769528882830,0.0002,87877.0,87865.0,0.67923211]
[1769528883017,0.0002,87877.0,87866.0,0.0085665]
[1769528883194,0.0002,87877.0,87865.0,0.67923211]
[1769528883399,0.0002,87877.0,87866.0,0.02303132]
[1769528883622,0.0002,87877.0,87868.0,0.01735625]
[1769528883846,0.0002,87877.0,87867.0,0.67923211]
[1769528884017,0.0002,87877.0,87867.0,0.66417841]
[1769528884220,0.0002,87877.0,87867.0,0.64661303]
[1769528884422,0.0002,87877.0,87867.0,0.62904474]
[1769528884662,0.0002,87877.0,87867.0,0.60896344]
[1769528884813,0.0002,87877.0,87867.0,0.58636741]
[1769528885022,0.0002,87877.0,87865.0,0.02303132]
[1769528885228,0.0002,87877.0,87858.0,0.02303132]
[1769528885434,0.70215616,87872.0,87855.0,0.67923211]
[1769528885643,0.70215616,87872.0,87835.0,0.05692436]
[1769528885644,0.0002,87877.0,87858.0,0.02303132]
[1769528885841,0.0002,87877.0,87861.0,0.67923211]
[1769528886101,0.0002,87877.0,87863.0,0.70226343]
[1769528886287,0.0002,87877.0,87850.0,0.34099848]
[1769528886288,0.0002,87887.0,87862.0,0.67923211]
[1769528886488,0.0002,87887.0,87865.0,0.02303132]
[1769528886707,0.0002,87887.0,87860.0,0.34099848]
[1769528886708,0.0002,87887.0,87868.0,0.67923211]
[1769528887042,0.67906385,87886.0,87856.0,0.11696]
[1769528887244,0.67906385,87886.0,87859.0,0.67923211]
[1769528887462,0.02337711,87885.0,87863.0,0.67923211]
[1769528887618,0.0002848,87886.0,87864.0,0.02303132]
[1769528887619,0.73567392,87882.0,87864.0,0.02303132]
[1769528887821,0.02337711,87879.0,87863.0,0.67923211]
[1769528888338,0.02337711,87879.0,87863.0,0.70226343]
[1769528888758,0.67877905,87885.0,87863.0,0.67923211]
[1769528888962,0.0002848,87886.0,87866.0,0.02303132]
[1769528889122,0.0002848,87886.0,87870.0,0.02303132]
[1769528889479,0.0002848,87886.0,87876.0,0.02303132]
[1769528889621,0.0002848,87886.0,87878.0,0.02303132]
[1769528889824,0.0002848,87886.0,87878.0,0.02293133]
[1769528890331,0.0002848,87886.0,87878.0,0.70216344]
[1769528891143,0.0002848,87886.0,87872.0,0.02303132]
[1769528891343,0.0002848,87886.0,87869.0,0.02303132]
[1769528891707,0.0002848,87886.0,87869.0,0.70226343]
[1769528891846,0.0002848,87886.0,87869.0,0.67923211]
[1769528892050,0.0002848,87886.0,87871.0,0.67923211]
[1769528892388,0.0002848,87886.0,87868.0,0.02303132]
[1769528892389,0.73567318,87883.0,87868.0,0.02303132]
[1769528892531,0.70215616,87883.0,87862.0,0.70226343]
[1769528892731,0.70215616,87883.0,87845.0,0.02732]
[1769528892732,0.0568961,87880.0,87863.0,0.02303132]
[1769528892962,0.0568969,87879.0,87863.0,0.70226343]
[1769528893168,0.92973404,87883.0,87863.0,0.70226343]
[1769528893169,0.02337711,87883.0,87863.0,0.70226343]
[1769528893369,0.02337711,87883.0,87857.0,0.11692]
[1769528893370,0.02337711,87883.0,87865.0,0.67923211]
[1769528893569,0.02337711,87883.0,87865.0,0.70226343]
[1769528894367,0.02337711,87883.0,87866.0,0.02303132]
[1769528894875,0.08027111,87883.0,87867.0,0.67923211]
[1769528895191,0.08027103,87883.0,87867.0,0.67923211]
[1769528895609,0.08027123,87883.0,87867.0,0.67923211]
[1769528895793,0.02337711,87883.0,87867.0,0.67923211]
[1769528896025,0.67906385,87886.0,87857.0,0.11692]
[1769528896026,0.0002848,87886.0,87869.0,0.67923211]
[1769528896217,0.0002848,87886.0,87872.0,0.02303132]
[1769528896364,0.0002848,87886.0,87873.0,0.70226343]
[1769528896780,0.0002848,87886.0,87857.0,0.11692]
[1769528896781,0.0002,87887.0,87871.0,0.67923211]
[1769528897002,0.0002,87887.0,87874.0,0.02303132]
[1769528897208,0.0002,87887.0,87877.0,0.67923211]
[1769528897422,0.02357711,87898.0,87870.0,0.34064244]
[1769528897423,0.0002,87898.0,87870.0,0.34064244]
[1769528897626,0.0002,87898.0,87874.0,0.67923211]
[1769528897822,0.0002,87898.0,87877.0,0.02303132]
[1769528898027,0.0002,87902.0,87882.0,0.02303132]
[1769528898208,0.0002,87902.0,87885.0,0.67923211]
[1769528898546,0.0002,87902.0,87890.0,0.02303132]
[1769528898719,0.0002,87902.0,87894.0,0.02303132]
[1769528899089,0.0002,87902.0,87894.0,0.70226343]
[1769528899392,0.0002,87902.0,87895.0,0.02303132]
[1769528899589,0.0002,87902.0,87896.0,0.67923211]
[1769528899797,0.0002,87902.0,87895.0,0.02303132]
[1769528900000,0.01,87896.0,87886.0,0.67923211]
[1769528900195,0.01,87896.0,87888.0,0.67923211]
[1769528900396,0.01,87896.0,87890.0,0.02303132]
[1769528900658,0.0002,87902.0,87890.0,0.02303132]
[1769528900859,0.0002,87902.0,87891.0,0.02303132]
[1769528901665,0.0002,87902.0,87892.0,0.67923211]
[1769528901890,0.0004848,87904.0,87895.0,0.02303132]
[1769528902106,0.50144311,87917.0,87899.0,0.02303132]
[1769528902107,0.0001432,87912.0,87899.0,0.02303132]
[1769528902588,0.0001432,87912.0,87899.0,0.68972545]
[1769528903029,0.0001432,87912.0,87884.0,0.11692]
[1769528903030,0.0001432,87912.0,87902.0,0.02408746]
[1769528903353,0.0001432,87912.0,87884.0,0.11692]
[1769528903354,0.0001432,87912.0,87904.0,0.02408746]
[1769528904440,0.0001432,87912.0,87905.0,0.64509544]
[1769528904633,0.0001432,87912.0,87904.0,0.02408746]
[1769528905456,0.0001432,87912.0,87899.0,0.64509544]
[1769528905687,0.50212107,87911.0,87897.0,0.02297019]
[1769528905899,0.01,87899.0,87889.0,0.02297019]
[1769528906085,0.01,87899.0,87890.0,0.02297019]
[1769528906296,0.52516092,87909.0,87890.0,0.02297019]
[1769528906497,0.02303985,87901.0,87881.0,0.02297019]
[1769528906682,0.36801767,87910.0,87875.0,0.0001088]
[1769528906683,0.68821473,87895.0,87875.0,0.02307899]
[1769528906899,0.02303985,87892.0,87875.0,0.0001088]
[1769528907065,0.02303985,87887.0,87875.0,0.0001088]
[1769528907396,0.07993277,87885.0,87875.0,0.0001088]
[1769528907548,0.02303985,87885.0,87875.0,0.0001088]
[1769528907729,0.69097879,87893.0,87875.0,0.0001088]
[1769528907928,0.65417702,87893.0,87876.0,0.02297019]
[1769528908127,0.02737523,87909.0,87877.0,0.02297019]
[1769528908383,0.05688283,87900.0,87879.0,0.02297019]
[1769528908620,0.71106099,87900.0,87879.0,0.02297019]
[1769528908819,0.05688721,87894.0,87879.0,0.02297019]
[1769528909070,0.11692,87908.0,87875.0,0.0001088]
[1769528909071,0.02303985,87906.0,87875.0,0.0001088]
[1769528909265,0.71106492,87893.0,87875.0,0.0001088]
[1769528909489,0.08426161,87895.0,87875.0,0.0001088]
[1769528909490,0.05688802,87892.0,87875.0,0.0001088]
[1769528909703,0.63113717,87899.0,87878.0,0.64509544]
[1769528911256,0.63113717,87899.0,87882.0,0.02297019]
[1769528911446,0.056887,87894.0,87882.0,0.02297019]
[1769528911623,0.63113717,87899.0,87882.0,0.02297019]
[1769528911624,0.05688524,87897.0,87882.0,0.02297019]
[1769528911814,0.05688555,87896.0,87882.0,0.02297019]
[1769528912209,0.63113717,87895.0,87882.0,0.02297019]
[1769528912411,0.63113717,87893.0,87875.0,0.02307899]
[1769528912635,0.63113717,87891.0,87875.0,0.02307899]
[1769528912813,0.05688929,87890.0,87875.0,0.02307899]
[1769528913017,0.02098354,87888.0,87875.0,0.0001088]
[1769528913247,0.05689358,87884.0,87875.0,0.0001088]
[1769528913440,0.05027873,87883.0,87875.0,0.0001088]
[1769528913638,0.0001088,87875.0,87862.0,0.02297019]
[1769528913818,0.63102946,87877.0,87862.0,0.02297019]
[1769528914159,0.02098354,87896.0,87867.0,0.64509544]
[1769528914451,0.34064244,87900.0,87860.0,0.000252]
[1769528914452,0.05689136,87887.0,87870.0,0.02297019]
[1769528915154,0.0568927,87885.0,87870.0,0.02297019]
[1769528915333,0.05689124,87887.0,87870.0,0.02297019]
[1769528915534,0.05689124,87887.0,87871.0,0.02297019]
[1769528915743,0.05689124,87887.0,87872.0,0.64509544]
[1769528915922,0.05689024,87889.0,87873.0,0.02297019]
[1769528916123,0.652013,87892.0,87873.0,0.02297019]
[1769528916358,0.05689086,87888.0,87873.0,0.02297019]
[1769528916576,0.87956608,87892.0,87873.0,0.02297019]
[1769528916577,0.05688961,87890.0,87873.0,0.02297019]
[1769528916759,0.652013,87892.0,87873.0,0.02297019]
[1769528916938,0.0568917,87887.0,87873.0,0.02297019]
[1769528917164,0.05689163,87887.0,87873.0,0.02297019]
[1769528917373,0.63102946,87889.0,87873.0,0.02297019]
[1769528917576,0.05689222,87886.0,87873.0,0.02297019]
[1769528917774,0.63102946,87890.0,87873.0,0.02297019]
[1769528917980,0.05689438,87883.0,87865.0,0.02297019]
[1769528918175,0.652013,87887.0,87867.0,0.64509544]
[1769528918363,0.0568944,87883.0,87869.0,0.02297019]
[1769528918570,0.05689251,87886.0,87869.0,0.02297019]
[1769528918771,0.05689251,87886.0,87870.0,0.02297019]
[1769528919175,0.05689259,87885.0,87870.0,0.02297019]
[1769528919378,0.05238774,87885.0,87860.0,0.000252]
[1769528919581,0.63102946,87875.0,87860.0,0.02322219]
[1769528919894,0.36162598,87880.0,87860.0,0.02322219]
[1769528919895,0.02737523,87874.0,87860.0,0.000252]
[1769528920115,0.63102946,87875.0,87860.0,0.000252]
[1769528920315,0.05689566,87881.0,87862.0,0.02297019]
[1769528920518,0.63102946,87882.0,87863.0,0.02297019]
[1769528920693,0.05689559,87881.0,87863.0,0.02297019]
[1769528920913,0.63102946,87882.0,87864.0,0.02297019]
[1769528921096,0.11692,87888.0,87867.0,0.64509544]
[1769528921308,0.63102946,87886.0,87868.0,0.02297019]
[1769528921510,0.05689399,87883.0,87869.0,0.02297019]
[1769528921697,0.05689543,87881.0,87869.0,0.02297019]
[1769528922098,0.05689386,87883.0,87869.0,0.02297019]
[1769528922610,0.29134588,87914.0,87871.0,0.02297019]
[1769528922611,0.22754949,87893.0,87871.0,0.02297019]
[1769528922832,0.11345825,87887.0,87872.0,0.02297019]
[1769528923079,0.05689231,87886.0,87872.0,0.02297019]
[1769528923205,0.05689251,87886.0,87872.0,0.02185009]
[1769528923394,0.17381116,87888.0,87872.0,0.02185009]
[1769528923609,0.05689164,87887.0,87872.0,0.02185009]
[1769528923839,0.11692,87888.0,87872.0,0.02185009]
[1769528924050,0.0568945,87882.0,87872.0,0.02185009]
[1769528924244,0.05689253,87885.0,87872.0,0.02185009]
[1769528924484,0.11692,87888.0,87872.0,0.02185009]
[1769528924684,0.05689258,87885.0,87872.0,0.02185009]
[1769528924906,0.22757012,87885.0,87872.0,0.02185009]
[1769528925110,0.05689301,87885.0,87872.0,0.02185009]
[1769528925339,0.0568932,87884.0,87865.0,0.64509544]
[1769528925479,0.63102946,87886.0,87867.0,0.02297019]
[1769528925813,0.68792161,87886.0,87869.0,0.02297019]
[1769528926019,0.63102946,87886.0,87869.0,0.02297019]
[1769528926218,0.05689177,87887.0,87872.0,0.64509544]
[1769528926380,0.17381185,87888.0,87874.0,0.02297019]
[1769528926975,0.05689144,87887.0,87874.0,0.02297019]
[1769528927272,0.05689167,87887.0,87874.0,0.02297019]
[1769528927496,0.056892,87886.0,87873.0,0.64509544]
[1769528927852,0.11692,87888.0,87873.0,0.64509544]
[1769528928024,0.17381099,87888.0,87873.0,0.64509544]
[1769528928227,0.05689148,87887.0,87873.0,0.64509544]
[1769528928390,0.11692,87888.0,87873.0,0.64509544]
[1769528929198,0.17381096,87888.0,87873.0,0.66806563]
[1769528929396,0.11692,87888.0,87873.0,0.02297019]
[1769528929608,0.02303985,87891.0,87873.0,0.02297019]
[1769528929609,0.36035759,87889.0,87873.0,0.13989019]
[1769528929895,0.000252,87912.0,87879.0,0.34064244]
[1769528930123,0.02303985,87927.0,87898.0,0.64509544]
[1769528930322,0.64520203,87929.0,87890.0,0.34064244]
[1769528930323,0.1364936,87926.0,87902.0,0.64509544]
[1769528930525,0.1364936,87926.0,87899.0,0.17380306]
[1769528930526,0.11345375,87925.0,87905.0,0.02297019]
[1769528930753,0.11345375,87925.0,87899.0,0.11692]
[1769528930754,0.11345375,87925.0,87906.0,0.66806563]
[1769528931101,0.11345375,87925.0,87906.0,0.64509544]
[1769528931392,0.02303985,87934.0,87910.0,0.70197137]
[1769528931590,0.0002,87946.0,87917.0,0.05687151]
[1769528931591,0.09089374,87946.0,87917.0,0.05687151]
[1769528931752,0.0002,87946.0,87920.0,0.02297019]
[1769528931955,0.0002,87946.0,87924.0,0.02297019]
[1769528932157,0.0002,87946.0,87927.0,0.64509544]
[1769528932342,0.63116161,87943.0,87927.0,0.64509544]
[1769528932765,0.0002,87946.0,87927.0,0.64509544]
[1769528932766,0.0002488,87940.0,87927.0,0.64509544]
[1769528934058,0.0002488,87940.0,87929.0,0.64509544]
[1769528935418,0.0003086,87959.0,87930.0,0.02111053]
[1769528935565,0.0003086,87959.0,87935.0,0.02111053]
[1769528935927,0.0003086,87959.0,87934.0,0.0568604]
[1769528935928,0.0003086,87959.0,87943.0,0.65959633]
[1769528936120,0.0003086,87959.0,87946.0,0.02111053]
[1769528936332,0.0003086,87959.0,87949.0,0.65959633]
[1769528936564,0.0003086,87959.0,87949.0,0.65973624]
[1769528937115,0.0003086,87959.0,87936.0,0.1442]
[1769528937116,0.00986009,87949.0,87943.0,0.02111053]
[1769528937316,0.00986009,87949.0,87944.0,0.65959633]
[1769528938385,0.0003086,87959.0,87944.0,0.65959633]
[1769528938737,0.0003086,87959.0,87945.0,0.11688]
[1769528938959,0.02405248,87959.0,87945.0,0.11688]
[1769528939935,0.0003086,87959.0,87946.0,0.6717101]
[1769528940150,0.0003086,87959.0,87948.0,0.65959633]
[1769528940549,0.0003086,87959.0,87943.0,0.00013986]
[1769528940550,0.00986009,87948.0,87943.0,0.00013986]
[1769528940770,0.02374388,87947.0,87943.0,0.11688]
[1769528941046,0.00986009,87948.0,87909.0,0.05687667]
[1769528941047,0.02374388,87946.0,87909.0,0.05687667]
[1769528941329,0.02374388,87944.0,87919.0,0.6717101]
[1769528941479,0.00013965,87944.0,87920.0,0.65959633]
[1769528941663,0.00013965,87944.0,87923.0,0.02339052]
[1769528941863,0.00013965,87944.0,87926.0,0.65959633]
[1769528942067,0.00013965,87944.0,87929.0,0.65959633]
[1769528942359,0.00013965,87944.0,87931.0,0.65959633]
[1769528942566,0.00013965,87944.0,87931.0,0.68298685]
[1769528943771,0.00013965,87944.0,87933.0,0.68298685]
[1769528944815,0.00013965,87944.0,87934.0,0.02339052]
[1769528944993,0.00013965,87944.0,87934.0,0.68298685]
[1769528945420,0.00013965,87944.0,87935.0,0.68298685]
[1769528946026,0.0003086,87959.0,87927.0,0.11688]
[1769528946027,0.0003086,87959.0,87936.0,0.02339052]
[1769528946235,0.14901552,87959.0,87938.0,0.68298685]
[1769528946435,0.1724508,87957.0,87938.0,0.68298685]
[1769528946711,0.1724508,87957.0,87927.0,0.11688]
[1769528946712,0.0003086,87959.0,87939.0,0.02339052]
[1769528946880,0.0003086,87959.0,87942.0,0.65959633]
[1769528947136,0.34064244,87990.0,87942.0,0.65959633]
[1769528947137,0.66938076,87980.0,87952.0,0.02339052]
[1769528947384,0.66938076,87980.0,87943.0,0.11684]
[1769528947385,0.66938076,87982.0,87955.0,0.65959633]
[1769528947584,0.0003086,87996.0,87952.0,0.65959633]
[1769528947585,0.02374388,87995.0,87952.0,0.65959633]
[1769528947763,0.02374388,87995.0,87960.0,0.65959633]
[1769528947962,0.66988428,87988.0,87963.0,0.02339052]
[1769528948328,0.66988428,87988.0,87950.0,0.34064244]
[1769528948329,0.00986009,87963.0,87950.0,0.02339052]
[1769528948530,0.00986009,87963.0,87950.0,0.11684]
[1769528948648,0.2273363,87976.0,87950.0,0.11684]
[1769528948649,0.02374388,87978.0,87952.0,0.65959633]
[1769528948854,0.0568341,87976.0,87955.0,0.02339052]
[1769528949073,0.08057639,87978.0,87958.0,0.68298685]
[1769528949274,0.08057639,87978.0,87950.0,0.11684]
[1769528949275,0.02737523,87977.0,87959.0,0.02339052]
[1769528949477,0.05683572,87973.0,87959.0,0.02339052]
[1769528949704,0.67238893,87974.0,87959.0,0.02339052]
[1769528949901,0.05683722,87971.0,87942.0,0.00013965]
[1769528950121,0.72922707,87970.0,87944.0,0.02339052]
[1769528950333,0.67238893,87967.0,87946.0,0.02339052]
[1769528950659,0.67238893,87971.0,87950.0,0.02339052]
[1769528950777,0.67238893,87971.0,87951.0,0.02339052]
[1769528951186,0.67238893,87971.0,87951.0,0.65959633]
[1769528951401,0.67238893,87971.0,87952.0,0.02339052]
[1769528951636,0.67238893,87971.0,87953.0,0.02339052]
[1769528952338,0.67238893,87970.0,87953.0,0.02339052]
[1769528952634,0.05683547,87974.0,87955.0,0.02339052]
[1769528952966,0.7292244,87974.0,87955.0,0.02339052]
[1769528953173,0.01915946,87979.0,87958.0,0.65959633]
[1769528953400,0.67238893,87984.0,87962.0,0.65959633]
[1769528953623,0.67238893,87992.0,87965.0,0.02339052]
[1769528953838,0.69976416,87992.0,87969.0,0.02339052]
[1769528954041,0.67238893,87990.0,87969.0,0.02339052]
[1769528954869,0.0003086,87996.0,87969.0,0.02339052]
[1769528955066,0.09885892,87993.0,87972.0,0.02339052]
[1769528955276,0.77124785,87993.0,87972.0,0.02339052]
[1769528955521,0.22773235,87996.0,87975.0,0.65959633]
[1769528955522,0.05682179,87995.0,87975.0,0.65959633]
[1769528955730,0.05682179,87995.0,87977.0,0.02339052]
[1769528955947,0.63849416,87995.0,87977.0,0.02339052]
[1769528956163,0.69531613,87995.0,87977.0,0.02339052]
[1769528956376,0.69531608,87995.0,87977.0,0.02339052]
[1769528956840,0.05682209,87994.0,87977.0,0.02339052]
[1769528957284,0.05682192,87995.0,87977.0,0.02339052]
[1769528957504,0.05682192,87995.0,87963.0,0.11684]
[1769528957505,0.00044854,87996.0,87981.0,0.02339052]
[1769528957725,0.05682149,87995.0,87981.0,0.02339052]
[1769528957935,0.05682248,87994.0,87981.0,0.02339052]
[1769528958134,0.05682229,87994.0,87981.0,0.02339052]
[1769528958350,0.05682149,87995.0,87981.0,0.02339052]
[1769528958509,0.05682149,87995.0,87981.0,0.1168]
[1769528958710,0.05727053,87996.0,87985.0,0.02339052]
[1769528958711,0.00044854,87996.0,87985.0,0.02339052]
[1769528959036,0.00044854,87996.0,87989.0,0.65959633]
[1769528959245,0.0001,87998.0,87991.0,0.02339052]
[1769528960300,0.0001,87998.0,87992.0,0.02339052]
[1769528960893,0.0001,87998.0,87994.0,0.02339052]
[1769528961323,0.0001,87998.0,87990.0,0.65959633]
[1769528961521,0.00044854,87990.0,87964.0,0.65959633]
[1769528961805,0.60762977,87990.0,87968.0,0.65959633]
[1769528961938,0.60762977,87990.0,87971.0,0.02339052]
[1769528961939,0.00044854,87990.0,87971.0,0.02339052]
[1769528962145,0.00044854,87990.0,87973.0,0.02339052]
[1769528962340,0.00044854,87990.0,87975.0,0.63725738]